[Event "Late-Titled-Tuesday-Blitz-April-02-2024"]
[Site "Chess.com"]
[Date "2024.04.02"]
[Round "3"]
[White "Jahonas"]
[Black "GMG"]
[Result "0-1"]
[WhiteElo "2505"]
[BlackElo "2788"]
[TimeControl "180+1"]
[EndTime "14:26:38 PDT"]
[Termination "GMG won by resignation"]

1. e4 {[%clk 0:03:00.9]} 1... c6 {[%clk 0:02:59]} 2. Nf3 {[%clk 0:03:00.9]} 2...
d5 {[%clk 0:02:59]} 3. Nc3 {[%clk 0:03:01.4]} 3... dxe4 {[%clk 0:02:58.8]} 4.
Nxe4 {[%clk 0:03:01.4]} 4... Nf6 {[%clk 0:02:59.7]} 5. Ng3 {[%clk 0:03:01]} 5...
h5 {[%clk 0:02:56.8]} 6. h4 {[%clk 0:02:55.9]} 6... Bg4 {[%clk 0:02:55.8]} 7.
Be2 {[%clk 0:02:55.8]} 7... Nbd7 {[%clk 0:02:52.4]} 8. d4 {[%clk 0:02:54.5]}
8... Qc7 {[%clk 0:02:50.6]} 9. c3 {[%clk 0:02:46.7]} 9... e6 {[%clk 0:02:48.2]}
10. Ng5 {[%clk 0:02:44.3]} 10... Bd6 {[%clk 0:02:44]} 11. N3e4 {[%clk
0:02:42.3]} 11... Be7 {[%clk 0:02:33.6]} 12. Be3 {[%clk 0:02:38.7]} 12... Bf5
{[%clk 0:02:30.7]} 13. Ng3 {[%clk 0:02:35.1]} 13... Ng4 {[%clk 0:02:19.6]} 14.
Nxf5 {[%clk 0:02:31.8]} 14... exf5 {[%clk 0:02:20.5]} 15. Bxg4 {[%clk
0:02:28.1]} 15... hxg4 {[%clk 0:02:16.6]} 16. Qb3 {[%clk 0:02:17.3]} 16... O-O
{[%clk 0:02:12.7]} 17. g3 {[%clk 0:02:10.7]} 17... Nf6 {[%clk 0:02:09.7]} 18.
Qc2 {[%clk 0:02:01.6]} 18... Qd7 {[%clk 0:02:07.4]} 19. O-O-O {[%clk 0:01:49.4]}
19... Nd5 {[%clk 0:02:07.1]} 20. Bd2 {[%clk 0:00:52.9]} 20... f6 {[%clk
0:02:04.7]} 21. Rh2 {[%clk 0:00:52.2]} 21... fxg5 {[%clk 0:01:59.9]} 22. hxg5
{[%clk 0:00:51.6]} 22... Qe6 {[%clk 0:02:00.1]} 23. Rdh1 {[%clk 0:00:47.3]}
23... Qg6 {[%clk 0:01:59.7]} 24. c4 {[%clk 0:00:43.5]} 24... Nc7 {[%clk
0:01:58.1]} 25. Qb3 {[%clk 0:00:39]} 25... b6 {[%clk 0:01:54.6]} 26. Bf4 {[%clk
0:00:36.3]} 26... Bxg5 {[%clk 0:01:53.4]} 27. d5 {[%clk 0:00:20.2]} 27... Bxf4+
{[%clk 0:01:51.2]} 28. gxf4 {[%clk 0:00:20.3]} 28... c5 {[%clk 0:01:44.8]} 29.
Rh5 {[%clk 0:00:16.4]} 29... Qd6 {[%clk 0:01:35.4]} 30. Qd3 {[%clk 0:00:15.9]}
30... Qxf4+ {[%clk 0:01:33]} 31. Kd1 {[%clk 0:00:14.4]} 31... Qd4 {[%clk
0:01:32.4]} 32. Qxd4 {[%clk 0:00:12.9]} 32... cxd4 {[%clk 0:01:33.3]} 33. Kd2
{[%clk 0:00:12.7]} 33... Ne8 {[%clk 0:01:25.5]} 34. Kd3 {[%clk 0:00:11.9]} 34...
Nd6 {[%clk 0:01:25.8]} 35. b4 {[%clk 0:00:10.7]} 35... Rac8 {[%clk 0:01:23.7]}
36. R1h2 {[%clk 0:00:07.9]} 36... Rxc4 {[%clk 0:01:19.2]} 37. Rh8+ {[%clk
0:00:07.5]} 37... Kf7 {[%clk 0:01:19.3]} 38. Rxf8+ {[%clk 0:00:08.1]} 38... Kxf8
{[%clk 0:01:20.2]} 39. Rh8+ {[%clk 0:00:07.8]} 39... Ke7 {[%clk 0:01:19]} 40.
Rg8 {[%clk 0:00:07.8]} 40... Rxb4 {[%clk 0:01:14.2]} 41. Rxg7+ {[%clk
0:00:07.9]} 41... Kf6 {[%clk 0:01:14.7]} 42. Rxa7 {[%clk 0:00:07.6]} 42... Ke5
{[%clk 0:01:14.9]} 43. Re7+ {[%clk 0:00:07]} 43... Kxd5 {[%clk 0:01:15.2]} 0-1

[Event "Late-Titled-Tuesday-Blitz-April-02-2024"]
[Site "Chess.com"]
[Date "2024.04.02"]
[Round "3"]
[White "Der_Balak_3Halak"]
[Black "CURRUTACO59"]
[Result "1-0"]
[WhiteElo "2433"]
[BlackElo "2254"]
[TimeControl "180+1"]
[EndTime "14:26:38 PDT"]
[Termination "Der_Balak_3Halak won on time"]

1. b3 {[%clk 0:03:00.9]} 1... e5 {[%clk 0:02:57.7]} 2. Bb2 {[%clk 0:03:01.8]}
2... d6 {[%clk 0:02:56.3]} 3. e3 {[%clk 0:02:59.7]} 3... Nf6 {[%clk 0:02:54.8]}
4. Ne2 {[%clk 0:02:57.1]} 4... g6 {[%clk 0:02:52.2]} 5. d4 {[%clk 0:02:57.2]}
5... Nbd7 {[%clk 0:02:50.9]} 6. c4 {[%clk 0:02:50.1]} 6... Bg7 {[%clk
0:02:50.5]} 7. Nbc3 {[%clk 0:02:50.5]} 7... O-O {[%clk 0:02:49.8]} 8. Qd2 {[%clk
0:02:47.3]} 8... Re8 {[%clk 0:02:37.8]} 9. g3 {[%clk 0:02:34.1]} 9... c6 {[%clk
0:02:09.3]} 10. Bg2 {[%clk 0:02:31.6]} 10... Qc7 {[%clk 0:01:59.4]} 11. O-O
{[%clk 0:02:29.3]} 11... a5 {[%clk 0:01:57.6]} 12. Rfd1 {[%clk 0:02:27.3]} 12...
b6 {[%clk 0:01:33.6]} 13. dxe5 {[%clk 0:02:25.7]} 13... dxe5 {[%clk 0:01:32.1]}
14. Nb5 {[%clk 0:02:25.4]} 14... cxb5 {[%clk 0:01:08.7]} 15. Bxa8 {[%clk
0:02:26.3]} 15... bxc4 {[%clk 0:01:08.2]} 16. Rac1 {[%clk 0:02:25.6]} 16... Ba6
{[%clk 0:01:03.7]} 17. Bg2 {[%clk 0:02:21.6]} 17... b5 {[%clk 0:01:03.2]} 18.
Qd6 {[%clk 0:02:18.8]} 18... Qa7 {[%clk 0:01:01.7]} 19. Bc6 {[%clk 0:01:56.6]}
19... Bf8 {[%clk 0:00:53]} 20. Qd2 {[%clk 0:01:55.2]} 20... Re7 {[%clk 0:00:41]}
21. bxc4 {[%clk 0:01:52.2]} 21... bxc4 {[%clk 0:00:37.4]} 22. Ba3 {[%clk
0:01:50.1]} 22... Re6 {[%clk 0:00:34]} 23. Bxd7 {[%clk 0:01:45.2]} 23... Bxa3
{[%clk 0:00:20.4]} 24. Bxe6 {[%clk 0:01:38.9]} 24... Bxc1 {[%clk 0:00:20.2]} 25.
Nxc1 {[%clk 0:01:29.5]} 25... fxe6 {[%clk 0:00:19.5]} 26. Qd8+ {[%clk
0:01:29.6]} 26... Kf7 {[%clk 0:00:19]} 27. Ne2 {[%clk 0:01:25.4]} 27... e4
{[%clk 0:00:11.6]} 28. Nc3 {[%clk 0:01:23.1]} 28... Qb7 {[%clk 0:00:08.3]} 29.
Kg2 {[%clk 0:01:15]} 29... Qb4 {[%clk 0:00:01.5]} 30. Qd4 {[%clk 0:00:52.1]} 1-0

[Event "Late-Titled-Tuesday-Blitz-April-02-2024"]
[Site "Chess.com"]
[Date "2024.04.02"]
[Round "3"]
[White "MasterSonnevanck23"]
[Black "yobdc"]
[Result "0-1"]
[WhiteElo "2383"]
[BlackElo "2595"]
[TimeControl "180+1"]
[EndTime "14:26:44 PDT"]
[Termination "yobdc won by resignation"]

1. d4 {[%clk 0:03:00.9]} 1... Nf6 {[%clk 0:02:58.6]} 2. Nf3 {[%clk 0:03:00.8]}
2... g6 {[%clk 0:02:58.8]} 3. c4 {[%clk 0:02:59.2]} 3... Bg7 {[%clk 0:02:59]} 4.
Nc3 {[%clk 0:02:58.8]} 4... O-O {[%clk 0:02:58.9]} 5. e4 {[%clk 0:02:57.6]} 5...
d6 {[%clk 0:02:59]} 6. Be2 {[%clk 0:02:56.4]} 6... Nbd7 {[%clk 0:02:59.3]} 7.
O-O {[%clk 0:02:54.2]} 7... e5 {[%clk 0:02:59.6]} 8. Be3 {[%clk 0:02:53.8]} 8...
Qe7 {[%clk 0:02:59.7]} 9. Qc2 {[%clk 0:02:53.3]} 9... Re8 {[%clk 0:02:53.8]} 10.
dxe5 {[%clk 0:02:40.2]} 10... dxe5 {[%clk 0:02:50.2]} 11. Nd5 {[%clk 0:02:38.9]}
11... Qd8 {[%clk 0:02:44.2]} 12. Rad1 {[%clk 0:02:23.9]} 12... c6 {[%clk
0:02:44.1]} 13. Nxf6+ {[%clk 0:02:21.2]} 13... Qxf6 {[%clk 0:02:45]} 14. c5
{[%clk 0:02:20]} 14... h6 {[%clk 0:02:22.1]} 15. Nd2 {[%clk 0:02:14.8]} 15...
Bf8 {[%clk 0:02:08.7]} 16. b4 {[%clk 0:02:13.1]} 16... a5 {[%clk 0:02:07.1]} 17.
a3 {[%clk 0:02:12.2]} 17... axb4 {[%clk 0:02:07.4]} 18. axb4 {[%clk 0:02:11.4]}
18... Nb8 {[%clk 0:01:43.2]} 19. Nc4 {[%clk 0:02:06.9]} 19... Na6 {[%clk
0:01:43.4]} 20. Nd6 {[%clk 0:02:01.5]} 20... Rd8 {[%clk 0:01:43.2]} 21. b5
{[%clk 0:01:41.9]} 21... Nxc5 {[%clk 0:01:22.8]} 22. Nxc8 {[%clk 0:01:10]} 22...
Rdxc8 {[%clk 0:01:08.7]} 23. bxc6 {[%clk 0:00:49.6]} 23... Rxc6 {[%clk
0:01:05.2]} 24. Bb5 {[%clk 0:00:46.5]} 24... Rc7 {[%clk 0:01:04.7]} 25. Ra1
{[%clk 0:00:32.2]} 25... Rac8 {[%clk 0:01:00.7]} 26. Rac1 {[%clk 0:00:23.1]}
26... Ne6 {[%clk 0:00:58]} 27. Qd2 {[%clk 0:00:19.2]} 27... Bc5 {[%clk
0:00:57.3]} 28. Bd7 {[%clk 0:00:15.7]} 28... Rd8 {[%clk 0:00:53.8]} 29. Bxc5
{[%clk 0:00:14.9]} 29... Rxc5 {[%clk 0:00:38.2]} 30. Bxe6 {[%clk 0:00:12.8]}
30... Rxd2 {[%clk 0:00:35.5]} 31. Rxc5 {[%clk 0:00:13.2]} 31... Qxe6 {[%clk
0:00:33.9]} 0-1

[Event "Late-Titled-Tuesday-Blitz-April-02-2024"]
[Site "Chess.com"]
[Date "2024.04.02"]
[Round "3"]
[White "NateSolon"]
[Black "Balla_Tamas"]
[Result "1/2-1/2"]
[WhiteElo "2698"]
[BlackElo "2496"]
[TimeControl "180+1"]
[EndTime "14:26:46 PDT"]
[Termination "Game drawn by repetition"]

1. d4 {[%clk 0:03:00.9]} 1... d5 {[%clk 0:02:59.9]} 2. Bf4 {[%clk 0:03:01]} 2...
Nf6 {[%clk 0:03:00]} 3. e3 {[%clk 0:03:01.3]} 3... e6 {[%clk 0:03:00.6]} 4. Nf3
{[%clk 0:03:01.3]} 4... Bd6 {[%clk 0:03:01.3]} 5. Ne5 {[%clk 0:03:01.7]} 5...
O-O {[%clk 0:03:01.1]} 6. Nd2 {[%clk 0:03:01.8]} 6... b6 {[%clk 0:03:00.5]} 7.
c3 {[%clk 0:02:54.8]} 7... c5 {[%clk 0:03:00.3]} 8. h4 {[%clk 0:02:52.1]} 8...
h6 {[%clk 0:02:58.6]} 9. g4 {[%clk 0:02:49.3]} 9... Bxe5 {[%clk 0:02:16.1]} 10.
dxe5 {[%clk 0:02:45]} 10... Ne4 {[%clk 0:02:15.4]} 11. g5 {[%clk 0:02:27.8]}
11... Nc6 {[%clk 0:01:41.4]} 12. gxh6 {[%clk 0:02:17.4]} 12... g6 {[%clk
0:01:41.4]} 13. Nxe4 {[%clk 0:02:05.4]} 13... dxe4 {[%clk 0:01:40.9]} 14. Qg4
{[%clk 0:02:05.2]} 14... Kh7 {[%clk 0:01:37.2]} 15. Rd1 {[%clk 0:01:52.5]} 15...
Qc7 {[%clk 0:01:36.8]} 16. Rd6 {[%clk 0:01:44.5]} 16... Bb7 {[%clk 0:01:28.5]}
17. h5 {[%clk 0:01:40.4]} 17... Rg8 {[%clk 0:01:15.5]} 18. Qh4 {[%clk
0:01:27.4]} 18... g5 {[%clk 0:00:51.2]} 19. Qh2 {[%clk 0:01:03]} 19... gxf4
{[%clk 0:00:49.7]} 20. Qxf4 {[%clk 0:01:03.9]} 20... Nxe5 {[%clk 0:00:23.3]} 21.
Qxe5 {[%clk 0:00:57.1]} 21... Rad8 {[%clk 0:00:23.6]} 22. Rxe6 {[%clk
0:00:56.1]} 22... Qd7 {[%clk 0:00:18.9]} 23. Qf5+ {[%clk 0:00:26.4]} 23... Kh8
{[%clk 0:00:19.1]} 24. Qf6+ {[%clk 0:00:26.3]} 24... Kh7 {[%clk 0:00:19.6]} 25.
Qf5+ {[%clk 0:00:26.3]} 25... Kh8 {[%clk 0:00:20.2]} 26. Qf6+ {[%clk 0:00:21.7]}
26... Kh7 {[%clk 0:00:20.6]} 27. Qf5+ {[%clk 0:00:17.5]} 1/2-1/2

[Event "Late-Titled-Tuesday-Blitz-April-02-2024"]
[Site "Chess.com"]
[Date "2024.04.02"]
[Round "3"]
[White "IamSchrodingersCat"]
[Black "Akhayan"]
[Result "1-0"]
[WhiteElo "2631"]
[BlackElo "2448"]
[TimeControl "180+1"]
[EndTime "14:26:54 PDT"]
[Termination "IamSchrodingersCat won by resignation"]

1. e4 {[%clk 0:03:00.9]} 1... e5 {[%clk 0:02:59.2]} 2. Nf3 {[%clk 0:03:00.6]}
2... Nc6 {[%clk 0:02:59.8]} 3. Bb5 {[%clk 0:03:00.4]} 3... a6 {[%clk 0:02:59.7]}
4. Ba4 {[%clk 0:03:00.7]} 4... Nf6 {[%clk 0:03:00.2]} 5. d3 {[%clk 0:03:00.3]}
5... b5 {[%clk 0:02:59.7]} 6. Bb3 {[%clk 0:03:00.4]} 6... Be7 {[%clk 0:03:00.2]}
7. O-O {[%clk 0:03:00.2]} 7... O-O {[%clk 0:03:00.9]} 8. c3 {[%clk 0:02:59]}
8... d5 {[%clk 0:02:59.8]} 9. Nbd2 {[%clk 0:02:58.9]} 9... Bb7 {[%clk
0:02:59.4]} 10. Re1 {[%clk 0:02:57.4]} 10... Qd7 {[%clk 0:02:57.1]} 11. Qe2
{[%clk 0:02:27.2]} 11... Rad8 {[%clk 0:02:54]} 12. Bc2 {[%clk 0:02:26.9]} 12...
h6 {[%clk 0:02:52.8]} 13. Nf1 {[%clk 0:02:25.6]} 13... d4 {[%clk 0:02:38.5]} 14.
Ng3 {[%clk 0:02:20.3]} 14... dxc3 {[%clk 0:02:36.6]} 15. bxc3 {[%clk 0:02:21.2]}
15... b4 {[%clk 0:02:37]} 16. Rb1 {[%clk 0:02:04.2]} 16... Ba8 {[%clk
0:02:25.7]} 17. cxb4 {[%clk 0:01:51.1]} 17... Bxb4 {[%clk 0:02:21.7]} 18. Rd1
{[%clk 0:01:50.7]} 18... Bd6 {[%clk 0:02:16.6]} 19. Nf5 {[%clk 0:01:43.8]} 19...
Kh7 {[%clk 0:02:11.2]} 20. d4 {[%clk 0:01:20.2]} 20... Qe8 {[%clk 0:01:54.1]}
21. d5 {[%clk 0:01:07.6]} 21... Nb4 {[%clk 0:01:52.5]} 22. Nxd6 {[%clk
0:01:04.7]} 22... cxd6 {[%clk 0:01:39.7]} 23. Rxb4 {[%clk 0:01:04.2]} 23... Rc8
{[%clk 0:01:38.5]} 24. Be3 {[%clk 0:00:58.3]} 24... Qd8 {[%clk 0:01:37.7]} 25.
Bd3 {[%clk 0:00:50.2]} 25... Qa5 {[%clk 0:01:37.8]} 26. Rb2 {[%clk 0:00:48.3]}
26... Rc3 {[%clk 0:01:35.3]} 27. h3 {[%clk 0:00:47]} 27... Qa3 {[%clk
0:01:34.5]} 28. Rc2 {[%clk 0:00:44.7]} 28... Rfc8 {[%clk 0:01:33.9]} 29. Rxc3
{[%clk 0:00:43.1]} 29... Rxc3 {[%clk 0:01:34.5]} 30. Bb1 {[%clk 0:00:37.5]}
30... Nd7 {[%clk 0:01:30]} 31. Nh4 {[%clk 0:00:30.1]} 31... g6 {[%clk
0:01:21.6]} 32. Nf3 {[%clk 0:00:29.6]} 32... Bb7 {[%clk 0:01:15.1]} 33. Nd2
{[%clk 0:00:26.3]} 33... a5 {[%clk 0:01:11.1]} 34. Qb5 {[%clk 0:00:20.7]} 34...
Bc8 {[%clk 0:01:02.6]} 35. Nc4 {[%clk 0:00:13.9]} 35... Qb4 {[%clk 0:00:40.4]}
36. Qxb4 {[%clk 0:00:13.9]} 36... axb4 {[%clk 0:00:41]} 37. Nxd6 {[%clk
0:00:14.6]} 37... Ba6 {[%clk 0:00:41.2]} 38. Nxf7 {[%clk 0:00:14]} 38... b3
{[%clk 0:00:40.9]} 39. axb3 {[%clk 0:00:13.9]} 1-0

[Event "Late-Titled-Tuesday-Blitz-April-02-2024"]
[Site "Chess.com"]
[Date "2024.04.02"]
[Round "3"]
[White "chucksterf10"]
[Black "Sargsyan_Shant"]
[Result "0-1"]
[WhiteElo "2652"]
[BlackElo "2956"]
[TimeControl "180+1"]
[EndTime "14:26:55 PDT"]
[Termination "Sargsyan_Shant won by resignation"]

1. d4 {[%clk 0:03:00.9]} 1... g6 {[%clk 0:02:59.3]} 2. g3 {[%clk 0:02:55.1]}
2... h5 {[%clk 0:02:58.1]} 3. Nf3 {[%clk 0:02:54.2]} 3... Bg7 {[%clk 0:02:58.3]}
4. Bg2 {[%clk 0:02:54.5]} 4... d6 {[%clk 0:02:58.8]} 5. c4 {[%clk 0:02:53.5]}
5... Nc6 {[%clk 0:02:57.6]} 6. Nc3 {[%clk 0:02:53]} 6... Bg4 {[%clk 0:02:58]} 7.
Be3 {[%clk 0:02:30.1]} 7... Nh6 {[%clk 0:02:51.4]} 8. h3 {[%clk 0:02:29.5]} 8...
Bxf3 {[%clk 0:02:49.4]} 9. exf3 {[%clk 0:02:29]} 9... Nf5 {[%clk 0:02:50.3]} 10.
d5 {[%clk 0:02:27]} 10... Nxe3 {[%clk 0:02:47.3]} 11. fxe3 {[%clk 0:02:26.6]}
11... Ne5 {[%clk 0:02:48.2]} 12. f4 {[%clk 0:02:19.5]} 12... Nd7 {[%clk
0:02:48.6]} 13. O-O {[%clk 0:02:15.3]} 13... c6 {[%clk 0:02:49.1]} 14. dxc6
{[%clk 0:02:13.1]} 14... bxc6 {[%clk 0:02:49.6]} 15. Bxc6 {[%clk 0:02:13.2]}
15... Rc8 {[%clk 0:02:50]} 16. Bd5 {[%clk 0:02:10.7]} 16... O-O {[%clk
0:02:47.8]} 17. Rc1 {[%clk 0:02:10.1]} 17... Qb6 {[%clk 0:02:47.1]} 18. Qe2
{[%clk 0:02:07]} 18... e6 {[%clk 0:02:47.1]} 19. Bf3 {[%clk 0:02:02.6]} 19...
Nc5 {[%clk 0:02:43.6]} 20. Rfd1 {[%clk 0:01:59.8]} 20... Rfd8 {[%clk 0:02:44]}
21. Kg2 {[%clk 0:01:55]} 21... a6 {[%clk 0:02:40.4]} 22. b3 {[%clk 0:01:54.4]}
22... Qb4 {[%clk 0:02:38.2]} 23. Qd2 {[%clk 0:01:31]} 23... Qb6 {[%clk
0:02:12.7]} 24. g4 {[%clk 0:01:26.9]} 24... h4 {[%clk 0:02:08.3]} 25. Qf2 {[%clk
0:01:24]} 25... Qa5 {[%clk 0:02:08.4]} 26. Ne4 {[%clk 0:01:16.4]} 26... Nxe4
{[%clk 0:02:01.5]} 27. Bxe4 {[%clk 0:01:17.3]} 27... d5 {[%clk 0:02:02]} 28.
cxd5 {[%clk 0:01:17.2]} 28... Rxc1 {[%clk 0:02:02.9]} 29. Rxc1 {[%clk
0:01:17.5]} 29... exd5 {[%clk 0:02:03.8]} 30. Bd3 {[%clk 0:01:09.4]} 30... Re8
{[%clk 0:02:01.3]} 31. Rc6 {[%clk 0:00:54.7]} 31... Qa3 {[%clk 0:01:45.6]} 32.
f5 {[%clk 0:00:40.2]} 32... gxf5 {[%clk 0:01:26]} 33. gxf5 {[%clk 0:00:32.2]}
33... Be5 {[%clk 0:01:13.8]} 34. f6 {[%clk 0:00:23]} 34... Qb2 {[%clk
0:00:54.7]} 35. Rc2 {[%clk 0:00:21.1]} 35... Qa1 {[%clk 0:00:50.3]} 36. Qf5
{[%clk 0:00:20.1]} 36... Bxf6 {[%clk 0:00:49.7]} 37. Qxf6 {[%clk 0:00:18.4]}
37... Qxf6 {[%clk 0:00:49.5]} 0-1

[Event "Late-Titled-Tuesday-Blitz-April-02-2024"]
[Site "Chess.com"]
[Date "2024.04.02"]
[Round "3"]
[White "Statham_01"]
[Black "stasOR4ik"]
[Result "1-0"]
[WhiteElo "2616"]
[BlackElo "2418"]
[TimeControl "180+1"]
[EndTime "14:26:58 PDT"]
[Termination "Statham_01 won by checkmate"]

1. e4 {[%clk 0:02:55.7]} 1... e6 {[%clk 0:03:00.9]} 2. d4 {[%clk 0:02:54.9]}
2... d5 {[%clk 0:03:01.8]} 3. Bd3 {[%clk 0:02:53.9]} 3... dxe4 {[%clk 0:02:59]}
4. Bxe4 {[%clk 0:02:54.8]} 4... Nf6 {[%clk 0:02:58.3]} 5. Bf3 {[%clk 0:02:55.5]}
5... c5 {[%clk 0:02:58.7]} 6. Ne2 {[%clk 0:02:56.2]} 6... Nc6 {[%clk 0:02:55]}
7. Be3 {[%clk 0:02:55.8]} 7... cxd4 {[%clk 0:02:54]} 8. Nxd4 {[%clk 0:02:56.7]}
8... Ne5 {[%clk 0:02:54.2]} 9. Nc3 {[%clk 0:02:56]} 9... Nxf3+ {[%clk
0:02:34.8]} 10. Qxf3 {[%clk 0:02:51.9]} 10... Be7 {[%clk 0:02:34.3]} 11. O-O-O
{[%clk 0:02:51.7]} 11... Qa5 {[%clk 0:02:32.7]} 12. Nc6 {[%clk 0:02:42]} 12...
Qc7 {[%clk 0:02:16.2]} 13. Nxe7 {[%clk 0:02:23.1]} 13... Qxe7 {[%clk 0:02:13.5]}
14. Bf4 {[%clk 0:02:12.2]} 14... e5 {[%clk 0:01:02.3]} 15. Bxe5 {[%clk
0:01:17.5]} 15... Qxe5 {[%clk 0:00:45.3]} 16. Rhe1 {[%clk 0:01:13.2]} 16... Qxe1
{[%clk 0:00:45.9]} 17. Rxe1+ {[%clk 0:01:13.5]} 17... Be6 {[%clk 0:00:46.6]} 18.
g4 {[%clk 0:00:56]} 18... O-O {[%clk 0:00:40.3]} 19. g5 {[%clk 0:00:56.5]} 19...
Nd7 {[%clk 0:00:34]} 20. h4 {[%clk 0:00:55.7]} 20... b5 {[%clk 0:00:17.9]} 21.
h5 {[%clk 0:00:54.4]} 21... b4 {[%clk 0:00:18]} 22. Ne4 {[%clk 0:00:52.2]} 22...
Ne5 {[%clk 0:00:17.4]} 23. Qg3 {[%clk 0:00:51.2]} 23... Nc4 {[%clk 0:00:10.8]}
24. h6 {[%clk 0:00:39.8]} 24... Rac8 {[%clk 0:00:10.8]} 25. Nf6+ {[%clk
0:00:38.1]} 25... Kh8 {[%clk 0:00:08.9]} 26. hxg7+ {[%clk 0:00:38.7]} 26... Kxg7
{[%clk 0:00:09.5]} 27. Qh4 {[%clk 0:00:35.7]} 27... Bf5 {[%clk 0:00:09.5]} 28.
Qh6+ {[%clk 0:00:28.1]} 28... Kh8 {[%clk 0:00:09.3]} 29. Rh1 {[%clk 0:00:27.3]}
29... Ne3 {[%clk 0:00:08.3]} 30. Qxh7+ {[%clk 0:00:27.1]} 30... Bxh7 {[%clk
0:00:08.6]} 31. Rxh7# {[%clk 0:00:28]} 1-0

[Event "Late-Titled-Tuesday-Blitz-April-02-2024"]
[Site "Chess.com"]
[Date "2024.04.02"]
[Round "3"]
[White "zsizsi99"]
[Black "Rodalquilar"]
[Result "0-1"]
[WhiteElo "2498"]
[BlackElo "2730"]
[TimeControl "180+1"]
[EndTime "14:26:59 PDT"]
[Termination "Rodalquilar won by resignation"]

1. e4 {[%clk 0:02:59]} 1... d5 {[%clk 0:03:00.3]} 2. exd5 {[%clk 0:02:58]} 2...
Qxd5 {[%clk 0:03:01.2]} 3. Nc3 {[%clk 0:02:58.3]} 3... Qa5 {[%clk 0:03:01.5]} 4.
Bc4 {[%clk 0:02:40.4]} 4... Nf6 {[%clk 0:03:01.3]} 5. d3 {[%clk 0:02:36.6]} 5...
Bg4 {[%clk 0:03:00.9]} 6. Ne2 {[%clk 0:02:32.8]} 6... Nc6 {[%clk 0:03:00.8]} 7.
O-O {[%clk 0:02:32.4]} 7... e6 {[%clk 0:02:55.1]} 8. h3 {[%clk 0:02:24.3]} 8...
Qh5 {[%clk 0:02:29.3]} 9. f3 {[%clk 0:02:21.4]} 9... Bc5+ {[%clk 0:01:42.3]} 10.
d4 {[%clk 0:02:07.9]} 10... Nxd4 {[%clk 0:01:33.3]} 11. Nxd4 {[%clk 0:02:05.3]}
11... Bxh3 {[%clk 0:01:11.7]} 12. gxh3 {[%clk 0:01:24.2]} 12... O-O-O {[%clk
0:01:11.5]} 13. Be3 {[%clk 0:01:11.3]} 13... Qe5 {[%clk 0:01:10.8]} 14. Qe2
{[%clk 0:01:01.5]} 14... Bxd4 {[%clk 0:01:01.9]} 15. Bxd4 {[%clk 0:01:01.6]}
15... Qxd4+ {[%clk 0:01:02.5]} 16. Kh1 {[%clk 0:00:49.8]} 16... Nh5 {[%clk
0:01:02.3]} 17. Ne4 {[%clk 0:00:32.5]} 17... Kb8 {[%clk 0:00:28.1]} 18. c3
{[%clk 0:00:28.3]} 18... Qe5 {[%clk 0:00:28.4]} 19. Qh2 {[%clk 0:00:27.9]} 19...
Nf4 {[%clk 0:00:27.3]} 20. Rad1 {[%clk 0:00:26.8]} 20... h6 {[%clk 0:00:23.8]}
21. Nf2 {[%clk 0:00:18.5]} 21... Qf5 {[%clk 0:00:17.3]} 22. Qg3 {[%clk
0:00:08.2]} 22... g5 {[%clk 0:00:17.2]} 23. Qg4 {[%clk 0:00:07.1]} 23... Qc2
{[%clk 0:00:17.2]} 24. Ne4 {[%clk 0:00:06.5]} 24... Rxd1 {[%clk 0:00:15.8]} 25.
Rxd1 {[%clk 0:00:05.6]} 25... Qxd1+ {[%clk 0:00:16.1]} 0-1

[Event "Late-Titled-Tuesday-Blitz-April-02-2024"]
[Site "Chess.com"]
[Date "2024.04.02"]
[Round "3"]
[White "Rsnr"]
[Black "Manukyan_Artak"]
[Result "1-0"]
[WhiteElo "2871"]
[BlackElo "2538"]
[TimeControl "180+1"]
[EndTime "14:27:04 PDT"]
[Termination "Rsnr won on time"]

1. d4 {[%clk 0:03:00.9]} 1... d5 {[%clk 0:02:59.9]} 2. c4 {[%clk 0:03:01.4]}
2... dxc4 {[%clk 0:03:00.8]} 3. e4 {[%clk 0:02:55.6]} 3... b5 {[%clk 0:02:59.9]}
4. a4 {[%clk 0:02:49.5]} 4... c6 {[%clk 0:03:00]} 5. Nc3 {[%clk 0:02:49.5]} 5...
b4 {[%clk 0:02:43.9]} 6. Nb1 {[%clk 0:02:49.6]} 6... Ba6 {[%clk 0:02:35.2]} 7.
Qc2 {[%clk 0:02:49.5]} 7... b3 {[%clk 0:02:23.8]} 8. Qc3 {[%clk 0:02:23.4]} 8...
Nf6 {[%clk 0:02:23.1]} 9. f3 {[%clk 0:02:23.4]} 9... e5 {[%clk 0:01:44.9]} 10.
dxe5 {[%clk 0:02:11.2]} 10... Nfd7 {[%clk 0:01:34.4]} 11. Be3 {[%clk 0:01:43.7]}
11... c5 {[%clk 0:00:53.1]} 12. Nd2 {[%clk 0:01:36]} 12... Nc6 {[%clk 0:00:48]}
13. Bxc4 {[%clk 0:01:35.8]} 13... Bxc4 {[%clk 0:00:46.6]} 14. Nxc4 {[%clk
0:01:35.4]} 14... Nd4 {[%clk 0:00:42]} 15. Rd1 {[%clk 0:00:51.1]} 15... Be7
{[%clk 0:00:28]} 16. Ne2 {[%clk 0:00:41.9]} 16... O-O {[%clk 0:00:18.8]} 17.
Nxd4 {[%clk 0:00:35]} 17... cxd4 {[%clk 0:00:19.7]} 18. Bxd4 {[%clk 0:00:35.9]}
18... Qc7 {[%clk 0:00:15]} 19. Ne3 {[%clk 0:00:28.2]} 19... Qb7 {[%clk
0:00:11.1]} 20. Nd5 {[%clk 0:00:27.3]} 20... Nb6 {[%clk 0:00:09.1]} 21. Nxe7+
{[%clk 0:00:20.9]} 21... Qxe7 {[%clk 0:00:08.8]} 22. Bc5 {[%clk 0:00:21.7]}
22... Qe6 {[%clk 0:00:04.1]} 23. Bxf8 {[%clk 0:00:21.4]} 23... Nxa4 {[%clk
0:00:02.8]} 24. Qd4 {[%clk 0:00:13.9]} 1-0